fUST/lending_fUST_20240713
["ID","MTS","AMOUNT","RATE_DAILY","PERIOD"]
[331924714,1720854640958,-33360.4488678,0.0002549,3]
[331924715,1720854640967,-16680.2244339,0.00025491,3]
[331924717,1720854640977,-1037.75,0.00025499,2]
[331924718,1720854640987,-1037.75,0.00025499,2]
[331924719,1720854640996,-1037.75,0.00025499,2]
[331924720,1720854641006,-1279.07095557,0.000255,7]
[331924721,1720854641015,-84874.70686066,0.000255,2]
[331924722,1720854641024,-30000.0,0.00025501,2]
[331924723,1720854641033,-175.8,0.00025576,2]
[331924724,1720854641043,-302.18418731,0.00025647,2]
[331924725,1720854641052,-625.03203924,0.00025699,2]
[331924726,1720854641062,-160.0,0.00025701,3]
[331924727,1720854641072,-495.80605338,0.00025719,2]
[331924728,1720854641085,-16680.2244339,0.00025743,3]
[331924729,1720854641095,-1037.75,0.00025752,2]
[331924730,1720854641106,-215.74901785,0.00025753,2]
[331924731,1720854641119,-523.16,0.00025753,2]
[331924732,1720854641128,-503.59,0.00025753,2]
[331924733,1720854641140,-500.0,0.00025753,2]
[331924734,1720854641150,-500.0,0.00025753,2]
[331924735,1720854641160,-552.0,0.00025753,2]
[331924737,1720854641170,-503.35,0.00025753,2]
[331924739,1720854641179,-845.16,0.00025753,2]
[331924741,1720854641189,-648.15,0.00025753,2]
[331924742,1720854641199,-500.0,0.00025753,2]
[331924743,1720854641209,-500.0,0.00025753,2]
[331924744,1720854641314,-500.0,0.00025753,2]
[331924745,1720854641323,-950.7,0.00025753,2]
[331924746,1720854641333,-500.0,0.00025753,2]
[331924747,1720854641342,-500.0,0.00025753,2]
[331924748,1720854641352,-500.0,0.00025753,2]
[331924749,1720854641362,-1714.24,0.00025753,2]
[331924750,1720854641371,-624.1387444,0.00025753,2]
[331924751,1720854641381,-1213.13,0.00025753,2]
[331924752,1720854641393,-502.46,0.00025753,2]
[331924753,1720854641403,-500.0,0.00025753,2]
[331924754,1720854641412,-500.0,0.00025753,2]
[331924755,1720854641422,-18063.93,0.00025753,2]
[331924756,1720854641432,-500.0,0.00025753,2]
[331924757,1720854641442,-500.0,0.00025753,2]
[331924758,1720854641451,-2877.79,0.00025753,2]
[331924759,1720854641461,-500.0,0.00025753,2]
[331924760,1720854641471,-500.0,0.00025753,2]
[331924761,1720854641480,-500.0,0.00025753,2]
[331924762,1720854641490,-500.0,0.00025753,2]
[331924763,1720854641499,-500.0,0.00025753,2]
[331924764,1720854641509,-500.0,0.00025753,2]
[331924765,1720854641518,-500.0,0.00025753,2]
[331924766,1720854641528,-155.38803877,0.00025762,2]
[331924767,1720854641538,-167.25207352,0.00025817,2]
[331924768,1720854641547,-175.8,0.00025876,2]
[331924769,1720854641556,-162.91247694,0.00025896,2]
[331924770,1720854641565,-160.0,0.000259,4]
[331924771,1720854641574,-150.8442482,0.00025903,2]
[331924772,1720854641584,-167.25207352,0.00025906,2]
[331924773,1720854641593,-158.02412099,0.00025909,2]
[331924774,1720854641603,-495.80605338,0.00025972,2]
[331924775,1720854641613,-166.3354984,0.00025987,2]
[331924776,1720854641622,-2500.0,0.00026,2]
[331924777,1720854641632,-1037.75,0.00026016,2]
[331924778,1720854641644,-883.24,0.00026017,3]
[331924779,1720854641653,-441.62,0.00026017,3]
[331924780,1720854641662,-16680.2244339,0.00026017,3]
[331924781,1720854641672,-154.5944506,0.00026025,2]
[331924782,1720854641681,-523.16,0.00026027,2]
[331924783,1720854641691,-503.59,0.00026027,2]
[331924784,1720854641700,-500.0,0.00026027,2]
[331924785,1720854641709,-500.0,0.00026027,2]
[331924786,1720854641719,-552.0,0.00026027,2]
[331924787,1720854641728,-503.35,0.00026027,2]
[331924788,1720854641737,-845.16,0.00026027,2]
[331924789,1720854641746,-648.15,0.00026027,2]
[331924790,1720854641755,-500.0,0.00026027,2]
[331924791,1720854641765,-500.0,0.00026027,2]
[331924792,1720854641774,-500.0,0.00026027,2]
[331924793,1720854641785,-950.7,0.00026027,2]
[331924794,1720854641794,-500.0,0.00026027,2]
[331924795,1720854641804,-500.0,0.00026027,2]
[331924796,1720854641815,-300.63942479,0.00026027,2]
[331924797,1720854641826,-1714.24,0.00026027,2]
[331924798,1720854641836,-1213.13,0.00026027,2]
[331924799,1720854641847,-502.46,0.00026027,2]
[331924800,1720854641858,-500.0,0.00026027,2]
[331924801,1720854641867,-500.0,0.00026027,2]
[331924802,1720854641877,-18063.93,0.00026027,2]
[331924803,1720854641887,-500.0,0.00026027,2]
[331924804,1720854641898,-500.0,0.00026027,2]
[331924805,1720854641908,-2877.79,0.00026027,2]
[331924806,1720854641919,-500.0,0.00026027,2]
[331924807,1720854641930,-500.0,0.00026027,2]
[331924808,1720854641942,-500.0,0.00026027,2]
[331924809,1720854641953,-500.0,0.00026027,2]
[331924810,1720854641962,-500.0,0.00026027,2]
[331924811,1720854641971,-577.14364174,0.00026027,2]
[331924812,1720854641980,-500.0,0.00026027,2]
[331924813,1720854641990,-166.3354984,0.00026074,2]
[331924814,1720854642000,-495.80605338,0.00026081,2]
[331924815,1720854642010,-160.0,0.00026099,5]
[331924816,1720854642020,-495.80605338,0.00026142,2]
[331924817,1720854642029,-175.8,0.00026176,2]
[331924818,1720854642039,-151.0,0.00026176,2]
[331924819,1720854642048,-753.59900862,0.00026183,2]
[331924820,1720854642057,-495.80605338,0.00026198,2]
[331924821,1720854642066,-160.0,0.00026199,3]
[331924822,1720854642078,-150.8442482,0.00026208,2]
[331924823,1720854642087,-155.38803877,0.00026223,2]
[331924824,1720854642096,-495.80605338,0.00026278,2]
[331924825,1720854642105,-160.0,0.00026298,6]
[331924826,1720854642115,-1037.75,0.000263,2]
[331924827,1720854642125,-1037.75,0.000263,2]
[331924828,1720854642134,-523.16,0.00026301,2]
[331924829,1720854642143,-503.59,0.00026301,2]
[331924830,1720854642154,-500.0,0.00026301,2]
[331924831,1720854642164,-500.0,0.00026301,2]
[331924832,1720854642173,-552.0,0.00026301,2]
[331924833,1720854642182,-503.35,0.00026301,2]
[331924834,1720854642191,-845.16,0.00026301,2]
[331924835,1720854642200,-648.15,0.00026301,2]
[331924836,1720854642209,-500.0,0.00026301,2]
[331924837,1720854642219,-500.0,0.00026301,2]
[331924838,1720854642228,-500.0,0.00026301,2]
[331924839,1720854642237,-950.7,0.00026301,2]
[331924840,1720854642246,-500.0,0.00026301,2]
[331924841,1720854642255,-500.0,0.00026301,2]
[331924842,1720854642265,-1714.24,0.00026301,2]
[331924843,1720854642274,-1213.13,0.00026301,2]
[331924844,1720854642284,-502.46,0.00026301,2]
[331924845,1720854642294,-500.0,0.00026301,2]
[331924846,1720854642303,-500.0,0.00026301,2]
[331924847,1720854642312,-18063.93,0.00026301,2]
[331924848,1720854642322,-500.0,0.00026301,2]
[331924849,1720854642332,-396.889684,0.00026301,2]
[331924850,1720854642343,-2877.79,0.00026301,2]
[331924851,1720854642355,-631.60587433,0.00026301,2]
[331924852,1720854642364,-500.0,0.00026301,2]
[331924853,1720854642374,-500.0,0.00026301,2]
[331924854,1720854642385,-500.0,0.00026301,2]
[331924855,1720854642394,-543.5326184,0.00026301,2]
[331924856,1720854642404,-306.0,0.00026314,2]
[331924857,1720854642413,-153.0,0.00026314,2]
[331924858,1720854642423,-153.0,0.00026314,2]
[331924859,1720854642432,-153.0,0.00026314,2]
[331924860,1720854642442,-153.0,0.00026314,2]
[331924861,1720854642451,-153.0,0.00026314,2]
[331924862,1720854642461,-153.0,0.00026314,2]
[331924863,1720854642471,-153.0,0.00026314,2]
[331924864,1720854642479,-153.0,0.00026314,2]
[331924865,1720854642489,-153.0,0.00026314,2]
[331924866,1720854642499,-153.0,0.00026314,2]
[331924867,1720854642508,-153.0,0.00026314,2]
[331924868,1720854642517,-153.0,0.00026314,2]
[331924869,1720854642528,-153.0,0.00026314,2]
[331924870,1720854642537,-153.0,0.00026314,2]
[331924871,1720854642548,-153.0,0.00026314,2]
[331924872,1720854642558,-753.59900862,0.00026321,2]
[331924873,1720854642567,-16680.2244339,0.00026324,3]
[331924874,1720854642578,-151.0,0.00026328,2]
[331924875,1720854642587,-155.38803877,0.00026334,2]
[331924876,1720854642597,-152.94115716,0.0002636,2]
[331924877,1720854642606,-753.59900862,0.00026412,2]
[331924878,1720854642616,-175.8,0.00026476,2]
[331924879,1720854642625,-151.0,0.00026476,2]
[331924880,1720854642636,-160.0,0.00026497,7]
[331924881,1720854642645,-166.3354984,0.00026499,2]
[331924882,1720854642654,-3000.0,0.000265,2]
[331924883,1720854642663,-3000.0,0.0002651,2]
[331924884,1720854642673,-3000.0,0.0002652,2]
[331924885,1720854642682,-3000.0,0.0002653,2]
[331924886,1720854642691,-3000.0,0.0002654,2]
[331924887,1720854642701,-753.59900862,0.00026547,2]
[331924888,1720854642711,-4365.336236,0.0002655,2]
[331924889,1720854642720,-1037.75,0.00026574,2]
[331924890,1720854642730,-487.82307911,0.00026574,2]
[331924891,1720854642739,-523.16,0.00026575,2]
[331924892,1720854642748,-503.59,0.00026575,2]
[331924893,1720854642758,-500.0,0.00026575,2]
[331924894,1720854642767,-500.0,0.00026575,2]
[331924895,1720854642777,-552.0,0.00026575,2]
[331924896,1720854642787,-503.35,0.00026575,2]
[331924897,1720854642796,-845.16,0.00026575,2]
[331924898,1720854642805,-648.15,0.00026575,2]
[331924899,1720854642815,-500.0,0.00026575,2]
[331924900,1720854642824,-500.0,0.00026575,2]
[331924901,1720854642835,-500.0,0.00026575,2]
[331924902,1720854642844,-950.7,0.00026575,2]
[331924903,1720854642854,-500.0,0.00026575,2]
[331924904,1720854642864,-500.0,0.00026575,2]
[331924905,1720854642874,-1714.24,0.00026575,2]
[331924906,1720854642884,-1213.13,0.00026575,2]
[331924907,1720854642893,-502.46,0.00026575,2]
[331924908,1720854642903,-500.0,0.00026575,2]
[331924909,1720854642912,-500.0,0.00026575,2]
[331924910,1720854642921,-18063.93,0.00026575,2]
[331924911,1720854642930,-500.0,0.00026575,2]
[331924912,1720854642940,-2877.79,0.00026575,2]
[331924913,1720854642950,-500.0,0.00026575,2]
[331924914,1720854642960,-500.0,0.00026575,2]
[331924915,1720854642971,-500.0,0.00026575,2]
[331924916,1720854642981,-152.44,0.000266,31]
[331924917,1720854642990,-748.0,0.000266,2]
[331924918,1720854642999,-748.0,0.000266,2]
[331924919,1720854643010,-495.80605338,0.00026637,2]
[331924920,1720854643020,-753.59900862,0.00026688,2]
[331924921,1720854643030,-160.0,0.00026696,8]
[331924922,1720854643041,-753.59900862,0.00026769,2]
[331924923,1720854643052,-175.8,0.00026776,2]
[331924924,1720854643061,-151.0,0.00026776,2]
[331924925,1720854643071,-152.94115716,0.0002678,2]
[331924926,1720854643085,-154.5944506,0.00026783,2]
[331924927,1720854643094,-154.5944506,0.00026791,2]
[331924928,1720854643103,-158.02412099,0.00026794,2]
[331924929,1720854643112,-154.5944506,0.00026809,2]
[331924930,1720854643122,-1037.75,0.00026848,2]
[331924931,1720854643133,-200.0,0.00026848,2]
[331924932,1720854643143,-523.16,0.00026849,2]
[331924933,1720854643154,-503.59,0.00026849,2]
[331924934,1720854643164,-500.0,0.00026849,2]
[331924935,1720854643176,-500.0,0.00026849,2]
[331924936,1720854643185,-552.0,0.00026849,2]
[331924937,1720854643195,-503.35,0.00026849,2]
[331924938,1720854643204,-845.16,0.00026849,2]
[331924939,1720854643214,-648.15,0.00026849,2]
[331924940,1720854643224,-500.0,0.00026849,2]
[331924941,1720854643234,-500.0,0.00026849,2]
[331924942,1720854643244,-489.98,0.00026849,2]
[331924944,1720854643253,-950.7,0.00026849,2]
[331924946,1720854643262,-297.47474978,0.00026849,2]
[331924947,1720854643271,-500.0,0.00026849,2]
[331924948,1720854643280,-1714.24,0.00026849,2]
[331924950,1720854643290,-1213.13,0.00026849,2]
[331924952,1720854643299,-502.46,0.00026849,2]
[331924954,1720854643309,-500.0,0.00026849,2]
[331924955,1720854643318,-500.0,0.00026849,2]
[331924956,1720854643328,-18063.93,0.00026849,2]
[331924957,1720854643337,-500.0,0.00026849,2]
[331924958,1720854643347,-2877.79,0.00026849,2]
[331924959,1720854643357,-500.0,0.00026849,2]
[331924960,1720854643367,-500.0,0.00026849,2]
[331924961,1720854643376,-263.78646863,0.00026849,2]
[331924962,1720854643387,-155.38803877,0.00026852,2]
[331924963,1720854643397,-495.80605338,0.00026867,2]
[331924964,1720854643407,-160.0,0.00026895,4]
[331924965,1720854643416,-160.0,0.00026895,9]
[331924966,1720854643425,-154.5944506,0.000269,2]
[331924967,1720854643437,-158.02412099,0.00026956,2]
[331924968,1720854643448,-10002.93925975,0.00027,10]
[331924969,1720854643457,-175.8,0.00027076,2]
[331924971,1720854643467,-151.0,0.00027076,2]
[331924972,1720854643477,-153.89522402,0.00027077,2]
[331924973,1720854643488,-753.59900862,0.00027083,2]
[331924974,1720854643497,-160.0,0.00027094,10]
[331924975,1720854643506,-150.8442482,0.0002711,2]
[331924976,1720854643517,-1037.75,0.00027122,2]
[331924977,1720854643527,-523.16,0.00027123,2]
[331924978,1720854643536,-503.59,0.00027123,2]
[331924979,1720854643546,-500.0,0.00027123,2]
[331924980,1720854643555,-500.0,0.00027123,2]
[331924981,1720854643565,-552.0,0.00027123,2]
[331924982,1720854643574,-503.35,0.00027123,2]
[331924983,1720854643583,-845.16,0.00027123,2]
[331924984,1720854643593,-648.15,0.00027123,2]
[331924985,1720854643602,-500.0,0.00027123,2]
[331924986,1720854643611,-500.0,0.00027123,2]
[331924987,1720854643620,-950.7,0.00027123,2]
[331924988,1720854643629,-500.0,0.00027123,2]
[331924989,1720854643640,-1714.24,0.00027123,2]
[331924990,1720854643649,-1213.13,0.00027123,2]
[331924991,1720854643659,-502.46,0.00027123,2]
[331924992,1720854643669,-500.0,0.00027123,2]
[331924993,1720854643678,-503.90562511,0.00027123,2]
[331924994,1720854643688,-18063.93,0.00027123,2]
[331924995,1720854643697,-500.0,0.00027123,2]
[331924996,1720854643707,-2877.79,0.00027123,2]
[331924997,1720854643717,-500.0,0.00027123,2]
[331924998,1720854643726,-500.0,0.00027123,2]
[331924999,1720854643736,-168.9575777,0.00027123,2]
[331925000,1720854643745,-153.0,0.00027135,2]
[331925001,1720854643754,-153.0,0.00027135,2]
[331925002,1720854643764,-153.9296136,0.00027135,2]
[331925003,1720854643774,-153.0,0.00027135,2]
[331925004,1720854643783,-166.3354984,0.00027149,2]
[331925005,1720854643793,-155.38803877,0.00027174,2]
[331925006,1720854643803,-378.43094604,0.00027184,2]
[331925007,1720854643813,-2115.28811021,0.00027184,2]
[331925008,1720854643822,-153.89522402,0.00027194,2]
[331925009,1720854643832,-154.89579136,0.00027194,2]
[331925010,1720854643841,-277.43701745,0.00027194,7]
[331925011,1720854643851,-175.876118,0.00027195,2]
[331925012,1720854643861,-155.38803877,0.00027239,2]
[331925013,1720854643870,-150.44479529,0.00027278,2]
[331925014,1720854643880,-160.0,0.00027293,11]
[331925015,1720854643890,-495.80605338,0.00027322,2]
[331925016,1720854643900,-166.3354984,0.00027348,2]
[331925017,1720854643909,-155.38803877,0.00027361,2]
[331925018,1720854643918,-753.59900862,0.00027362,2]
[331925019,1720854643927,-155.38803877,0.00027372,2]
[331925021,1720854643936,-175.8,0.00027377,2]
[331925023,1720854643946,-151.0,0.00027377,2]
[331925025,1720854643955,-1037.75,0.00027396,2]
[331925030,1720854643965,-1037.75,0.00027396,2]
[331925031,1720854644070,-523.16,0.00027397,2]
[331925032,1720854644083,-122.47362954,0.00027397,2]
[331925033,1720854644179,-381.11637046,0.00027397,2]
[331925034,1720854644189,-500.0,0.00027397,2]
[331925035,1720854644199,-511.98,0.00027397,2]
[331925036,1720854644208,-511.98,0.00027397,2]
[331925037,1720854644218,-511.98,0.00027397,2]
[331925038,1720854644227,-511.98,0.00027397,2]
[331925039,1720854644236,-511.98,0.00027397,2]
[331925040,1720854644245,-511.98,0.00027397,2]
[331925041,1720854644253,-511.98,0.00027397,2]
[331925042,1720854644261,-511.98,0.00027397,2]
[331925043,1720854644271,-511.98,0.00027397,2]
[331925044,1720854644280,-511.98,0.00027397,2]
[331925045,1720854644289,-511.98,0.00027397,2]
[331925046,1720854644298,-500.0,0.00027397,2]
[331925047,1720854644307,-552.0,0.00027397,2]
[331925048,1720854644317,-503.35,0.00027397,2]
[331925049,1720854644327,-845.16,0.00027397,2]
[331925050,1720854644336,-648.15,0.00027397,2]
[331925051,1720854644346,-500.0,0.00027397,2]
[331925052,1720854644355,-260.22714058,0.00027397,2]
[331925053,1720854644365,-950.7,0.00027397,2]
[331925054,1720854644375,-500.0,0.00027397,2]
[331925055,1720854644385,-1714.24,0.00027397,2]
[331925056,1720854644395,-1213.13,0.00027397,2]
[331925057,1720854644404,-591.3436289,0.00027397,2]
[331925058,1720854644414,-591.3436289,0.00027397,2]
[331925059,1720854644423,-591.3436289,0.00027397,2]
[331925060,1720854644433,-591.3436289,0.00027397,2]
[331925061,1720854644442,-591.3436289,0.00027397,2]
[331925062,1720854644453,-591.3436289,0.00027397,2]
[331925063,1720854644463,-591.3436289,0.00027397,2]
[331925064,1720854644472,-591.3436289,0.00027397,2]
[331925065,1720854644481,-591.3436289,0.00027397,2]
[331925066,1720854644490,-591.3436289,0.00027397,2]
[331925067,1720854644500,-591.3436289,0.00027397,2]
[331925068,1720854644509,-591.3436289,0.00027397,2]
[331925069,1720854644518,-591.3436289,0.00027397,2]
[331925070,1720854644529,-591.3436289,0.00027397,2]
[331925071,1720854644539,-591.3436289,0.00027397,2]
[331925072,1720854644548,-591.3436289,0.00027397,2]
[331925073,1720854644558,-591.3436289,0.00027397,2]
[331925074,1720854644567,-591.3436289,0.00027397,2]
[331925075,1720854644576,-591.3436289,0.00027397,2]
[331925076,1720854644586,-591.3436289,0.00027397,2]
[331925077,1720854644595,-591.3436289,0.00027397,2]
[331925078,1720854644604,-591.3436289,0.00027397,2]
[331925079,1720854644614,-591.3436289,0.00027397,2]
[331925080,1720854644624,-591.3436289,0.00027397,2]
[331925081,1720854644634,-591.3436289,0.00027397,2]
[331925082,1720854644648,-591.3436289,0.00027397,2]
[331925083,1720854644658,-591.3436289,0.00027397,2]
[331925084,1720854644669,-591.3436289,0.00027397,2]
[331925085,1720854644678,-591.3436289,0.00027397,2]
[331925086,1720854644688,-591.3436289,0.00027397,2]
[331925087,1720854644697,-591.3436289,0.00027397,2]
[331925088,1720854644707,-591.3436289,0.00027397,2]
[331925089,1720854644718,-591.3436289,0.00027397,2]
[331925090,1720854644727,-591.3436289,0.00027397,2]
[331925091,1720854644738,-591.3436289,0.00027397,2]
[331925092,1720854644749,-591.3436289,0.00027397,2]
[331925093,1720854644758,-591.3436289,0.00027397,2]
[331925094,1720854644768,-591.3436289,0.00027397,2]
[331925095,1720854644777,-591.3436289,0.00027397,2]
[331925096,1720854644787,-591.3436289,0.00027397,2]
[331925097,1720854644797,-591.3436289,0.00027397,2]
[331925098,1720854644809,-591.3436289,0.00027397,2]
[331925099,1720854644819,-591.3436289,0.00027397,2]
[331925100,1720854644830,-591.3436289,0.00027397,2]
[331925101,1720854644842,-591.3436289,0.00027397,2]
[331925102,1720854644852,-591.3436289,0.00027397,2]
[331925103,1720854644862,-591.3436289,0.00027397,2]
[331925104,1720854644871,-591.3436289,0.00027397,2]
[331925105,1720854644881,-591.3436289,0.00027397,2]
[331925106,1720854644892,-591.3436289,0.00027397,2]
[331925107,1720854644902,-591.3436289,0.00027397,2]
[331925108,1720854644912,-591.3436289,0.00027397,2]
[331925109,1720854644922,-591.3436289,0.00027397,2]
[331925110,1720854644933,-591.3436289,0.00027397,2]
[331925111,1720854644943,-591.3436289,0.00027397,2]
[331925112,1720854644954,-591.3436289,0.00027397,2]
[331925113,1720854644964,-591.3436289,0.00027397,2]
[331925114,1720854644976,-591.3436289,0.00027397,2]
[331925115,1720854644986,-591.3436289,0.00027397,2]
[331925116,1720854644997,-591.3436289,0.00027397,2]
[331925117,1720854645009,-591.3436289,0.00027397,2]
[331925118,1720854645020,-591.3436289,0.00027397,2]
[331925119,1720854645030,-591.3436289,0.00027397,2]
[331925120,1720854645041,-591.3436289,0.00027397,2]
[331925121,1720854645052,-591.3436289,0.00027397,2]
[331925122,1720854645061,-591.3436289,0.00027397,2]
[331925123,1720854645071,-591.3436289,0.00027397,2]
[331925124,1720854645085,-502.46,0.00027397,2]
[331925125,1720854645094,-578.48833261,0.00027397,2]
[331925126,1720854645105,-578.48833261,0.00027397,2]
[331925127,1720854645115,-578.48833261,0.00027397,2]
[331925128,1720854645126,-578.48833261,0.00027397,2]
[331925130,1720854645137,-578.48833261,0.00027397,2]
[331925131,1720854645148,-578.48833261,0.00027397,2]
[331925133,1720854645158,-578.48833261,0.00027397,2]
[331925135,1720854645171,-578.48833261,0.00027397,2]
[331925136,1720854645180,-578.48833261,0.00027397,2]
[331925137,1720854645189,-578.48833261,0.00027397,2]
[331925138,1720854645198,-578.48833261,0.00027397,2]
[331925139,1720854645208,-578.48833261,0.00027397,2]
[331925140,1720854645217,-578.48833261,0.00027397,2]
[331925141,1720854645227,-578.48833261,0.00027397,2]
[331925142,1720854645236,-578.48833261,0.00027397,2]
[331925143,1720854645245,-578.48833261,0.00027397,2]
[331925144,1720854645254,-578.48833261,0.00027397,2]
[331925145,1720854645265,-578.48833261,0.00027397,2]
[331925146,1720854645276,-578.48833261,0.00027397,2]
[331925147,1720854645286,-578.48833261,0.00027397,2]
[331925148,1720854645297,-578.48833261,0.00027397,2]
[331925149,1720854645307,-578.48833261,0.00027397,2]
[331925150,1720854645317,-500.0,0.00027397,2]
[331925151,1720854645327,-578.48833253,0.00027397,2]
[331925152,1720854645337,-18063.93,0.00027397,2]
[331925153,1720854645346,-500.0,0.00027397,2]
[331925154,1720854645357,-2877.79,0.00027397,2]
[331925155,1720854645367,-500.0,0.00027397,2]
[331925156,1720854645376,-500.0,0.00027397,2]
[331925157,1720854645386,-1109.65031317,0.00027399,2]
[331925158,1720854645396,-336.78649297,0.000274,2]
[331925159,1720854645405,-495.80605338,0.00027421,2]
[331925160,1720854645414,-753.59900862,0.00027428,2]
[331925161,1720854645424,-600.0,0.00027434,2]
[331925162,1720854645434,-154.5944506,0.00027437,2]
[331925163,1720854645445,-753.59900862,0.00027448,2]
[331925164,1720854645455,-753.59900862,0.00027463,2]
[331925165,1720854645464,-155.38803877,0.00027467,2]
[331925166,1720854645474,-166.3354984,0.00027472,2]
[331925167,1720854645484,-160.0,0.00027492,12]
[331925168,1720854645494,-155.38803877,0.00027498,2]
[331925169,1720854645503,-160.0,0.00027592,5]
[331925170,1720854645514,-500.0,0.00027666,2]
[331925171,1720854645524,-500.0,0.00027666,2]
[331925172,1720854645534,-500.0,0.00027666,2]
[331925173,1720854645543,-490.22829771,0.00027666,2]
[331925174,1720854645553,-1037.75,0.0002767,2]
[331925175,1720854645563,-523.16,0.00027671,2]
[331925176,1720854645572,-503.59,0.00027671,2]
[331925177,1720854645581,-500.0,0.00027671,2]
[331925178,1720854645590,-511.98,0.00027671,2]
[331925179,1720854645599,-500.0,0.00027671,2]
[331925180,1720854645609,-552.0,0.00027671,2]
[331925181,1720854645620,-503.35,0.00027671,2]
[331925182,1720854645631,-845.16,0.00027671,2]
[331925183,1720854645642,-648.15,0.00027671,2]
[331925184,1720854645651,-500.0,0.00027671,2]
[331925185,1720854645660,-950.7,0.00027671,2]
[331925186,1720854645669,-417.06458434,0.00027671,2]
[331925187,1720854645678,-1714.24,0.00027671,2]
[331925188,1720854645688,-1213.13,0.00027671,2]
[331925189,1720854645697,-502.46,0.00027671,2]
[331925190,1720854645706,-500.0,0.00027671,2]
[331925191,1720854645715,-18063.93,0.00027671,2]
[331925192,1720854645724,-463.38609398,0.00027671,2]
[331925193,1720854645733,-2877.79,0.00027671,2]
[331925194,1720854645743,-500.0,0.00027671,2]
[331925195,1720854645752,-500.0,0.00027671,2]
[331925196,1720854645761,-175.8,0.00027677,2]
[331925197,1720854645770,-151.0,0.00027677,2]
[331925198,1720854645779,-160.0,0.00027691,13]
[331925199,1720854645788,-150.44479529,0.00027699,2]
[331925200,1720854645797,-150.44479529,0.0002771,2]
[331925201,1720854645807,-600.0,0.0002772,2]
[331925202,1720854645815,-150.44479529,0.00027741,2]
[331925203,1720854645825,-152.0,0.00027751,2]
[331925204,1720854645834,-154.5944506,0.00027753,2]
[331925205,1720854645844,-155.38803877,0.00027757,2]
[331925206,1720854645854,-595.60107385,0.00027778,2]
[331925207,1720854645863,-154.5944506,0.00027821,2]
[331925208,1720854645872,-753.59900862,0.00027824,2]
[331925209,1720854645881,-166.3354984,0.00027841,2]
[331925210,1720854645892,-152.94115716,0.00027876,2]
[331925211,1720854645902,-160.0,0.0002789,14]
[331925212,1720854645911,-1378.57404341,0.000279,2]
[331925213,1720854645920,-166.3354984,0.00027921,2]
[331925214,1720854645930,-150.8442482,0.00027926,2]
[331925215,1720854645939,-166.3354984,0.0002794,2]
[331925216,1720854645949,-150.44479529,0.00027942,2]
[331925217,1720854645959,-1037.75,0.00027944,2]
[331925218,1720854645968,-1037.75,0.00027944,2]
[331925219,1720854645977,-1037.75,0.00027944,2]
[331925220,1720854645987,-1037.75,0.00027944,2]
[331925221,1720854645996,-1037.86,0.00027944,2]
[331925222,1720854646005,-523.16,0.00027945,2]
[331925223,1720854646015,-503.59,0.00027945,2]
[331925224,1720854646024,-319.74621217,0.00027945,2]
[331925225,1720854646033,-511.98,0.00027945,2]
[331925226,1720854646043,-500.0,0.00027945,2]
[331925228,1720854646052,-552.0,0.00027945,2]
[331925229,1720854646061,-503.35,0.00027945,2]
[331925231,1720854646071,-845.16,0.00027945,2]
[331925232,1720854646084,-648.15,0.00027945,2]
[331925234,1720854646094,-500.0,0.00027945,2]
[331925235,1720854646103,-950.7,0.00027945,2]
[331925237,1720854646112,-1714.24,0.00027945,2]